Cogmind - Beta 9.6 @@@ ROGUE MODE // 2020.08.29 @ 18:47:34 Player: Cracklepappy Result: Destroyed by as-41997 with Assembled Rifle Performance ------------- Evolutions (3) 1500 Regions Visited (12) 2400 Robots Destroyed (189) 945 Value Destroyed (4929) 4929 Prototype IDs (20) 400 Alien Tech Used (0) 0 Bonus (1483) 1483 TOTAL SCORE: 11657 Bonus ------- High Alert Combat Kills 237 Follower Combat Kills 108 Met Imprinter 300 Destroyed Z-Imprinter 1000 Friendly Fire -162 Cogmind --------- Core Integrity 0/700 Matter 157/300 Energy 65/100 System Corruption 0% Temperature Cool (42) Movement Core (1150) Ox22 Location -7/Deep Caves Parts ------- > --- POWER (2) -------- Zionite Light DM Reactor Zionite Light DM Reactor > --- PROPULSION (4) --- Combat Airjet Combat Airjet Combat Airjet Zionite Glidesys I > --- UTILITY (5) ------ Large Storage Unit Large Storage Unit Experimental Signal Interpreter Zionite Heavy Carapace > --- WEAPON (2) ------- Heavy Particle Gun Beamcaster > --- INVENTORY (16) --- Combat Airjet Experimental Heat Sink High-capacity Battery (400) Zionite Biocell (1000) Zionite Biocell (1000) Improved Terrain Scanner Zionite Weapon Casing Zionite Weapon Casing Advanced Hacking Suite Heart of Steel Mini Grenade Launcher Makeshift Axe Peak State ------------ > --- POWER ------------ Zionite Light DM Reactor Zionite Light DM Reactor > --- PROPULSION ------- Combat Airjet Combat Airjet Combat Airjet Zionite Glidesys I > --- UTILITY ---------- Experimental Heat Sink Large Storage Unit Large Storage Unit Experimental Sensor Array Experimental Signal Interpreter > --- WEAPON ----------- Beamcaster Zionite Phaser-S > --- INVENTORY -------- Light Treads Combat Airjet Experimental Heat Sink High-capacity Battery Zionite Biocell Zionite Biocell Improved Terrain Scanner Zionite Weapon Casing Zionite Weapon Casing Zionite Heavy Carapace Advanced Hacking Suite Heavy Particle Gun Zionite Laser-S Mini Grenade Launcher Makeshift Axe [Rating: 77] Favorites ----------- Power Light Deuterium Engine Engine Light Deuterium Engine Power Core Nuclear Core Reactor Zionite Light DM Reactor Propulsion Light Treads Treads Light Treads Wheel Compact Wheel Hover Unit Combat Airjet Utility Large Storage Unit Device Experimental Sensor Array Storage Large Storage Unit Processor Experimental Signal Interpreter Hackware Hacking Suite Protection Improved Light Armor Plating Weapon Autogun Energy Gun Improved EM Shotgun Ballistic Gun Autogun Ballistic Cannon Light Cannon Launcher Mini Grenade Launcher Special Weapon Mining Laser Impact Weapon Makeshift Hammer Slashing Weapon Makeshift Axe Build | -11 -10 -10 -9 -9 -9 -8 -8 -7 -7 -7 -7 -7 ------- Run | Scr Mat Min Mat Min Exi Min Mat Fac Low Low Zio Dee Slots Evolved 6 | . . . 2 . . . 2 2 . . . . Power 1 | . . . . . . . . 1 . . . . Propulsion 2 | . . . . . . . 1 1 . . . . Utility 3 | . . . 2 . . . 1 . . . . . Weapon . | . . . . . . . . . . . . . Parts Attached 230 | 7 18 12 45 11 . 4 23 21 4 13 13 59 Power 18 | 1 1 1 3 1 . 1 2 2 . 1 . 5 Engine 12 | 1 1 1 1 1 . 1 2 1 . 1 . 2 Core 3 | . . . 2 . . . . 1 . . . . Reactor 3 | . . . . . . . . . . . . 3 Propulsion 44 | 2 3 2 9 1 . 3 3 11 . 1 . 9 Treads 23 | . . 2 9 1 . 3 2 6 . . . . Leg . | . . . . . . . . . . . . . Wheel 6 | 2 3 . . . . . 1 . . . . . Hover 15 | . . . . . . . . 5 . 1 . 9 Flight . | . . . . . . . . . . . . . Utility 77 | 2 2 . 11 3 . . 5 7 2 5 10 30 Device 23 | . . . 2 1 . . . 1 1 2 5 11 Storage 13 | 2 2 . 3 1 . . . 1 . 1 . 3 Processor 6 | . . . . . . . . 1 . . 5 . Hackware 2 | . . . . . . . . 2 . . . . Protection 33 | . . . 6 1 . . 5 2 1 2 . 16 Artifact . | . . . . . . . . . . . . . Weapon 91 | 2 12 9 22 6 . . 13 1 2 6 3 15 Energy Gun 14 | . 1 . 7 . . . 1 . . . . 5 Energy Cannon . | . . . . . . . . . . . . . Ballistic Gun 43 | 2 6 4 8 2 . . 8 1 1 3 1 7 Ballistic Cannon 2 | . . 2 . . . . . . . . . . Launcher 22 | . 3 3 6 1 . . 3 . 1 3 . 2 Special Weapon 7 | . 2 . 1 3 . . 1 . . . . . Impact Weapon 1 | . . . . . . . . . . . 1 . Slashing Weapon 2 | . . . . . . . . . . . 1 1 Piercing Weapon . | . . . . . . . . . . . . . Special Melee Weapon . | . . . . . . . . . . . . . Unidentified Prototypes 16 | . . . 3 . . . 1 . . . 2 10 Parts Lost 48 | . 1 3 10 2 . 4 5 1 . 2 . 20 Power 11 | . . . 1 1 . 1 2 . . 1 . 5 Propulsion 15 | . . 2 3 . . 2 1 1 . 1 . 5 Utility 9 | . . . 3 . . . . . . . . 6 Weapon 13 | . 1 1 3 1 . 1 2 . . . . 4 Highest Loss Streak 11 | . 1 2 2 2 . 3 1 1 . 1 . 11 Average Slot Usage (%) 98 | . 100 99 98 100 100 96 99 99 100 99 99 96 Engine 7 | . 14 14 1 11 11 11 8 7 7 6 7 2 Core 3 | . . . 9 . . . . 6 7 7 7 1 Treads 14 | . . 27 21 22 22 22 20 23 . . . . Wheel 2 | . 28 . . . . . 5 . . . . . Hover 9 | . . . . . . . . 5 30 29 30 29 Device 4 | . . . 8 7 . . . 1 4 6 6 7 Storage 24 | . 28 28 22 25 33 33 27 23 23 23 23 17 Processor 2 | . . . . . . . . 1 7 7 7 7 Protection 7 | . . . 12 11 11 11 17 7 2 . . 3 Energy Gun 2 | . . . 9 . . . . . . . . 3 Ballistic Gun 13 | . 23 13 9 18 22 18 16 15 11 10 9 9 Ballistic Cannon 1 | . . 13 2 . . . . . . . . . Launcher 1 | . 1 . . 2 . . . . 2 4 . . Naked Turns . | . . . . . . . . . . . . . Heaviest Build 102 | 16 29 28 65 81 81 81 93 102 77 77 68 78 Greatest Support 94 | 32 32 40 40 40 40 40 60 88 77 88 88 94 Greatest Overweight (x) 9 | . 1 1 2 2 2 2 9 1 . . . 1 Average Overweight (x) . | . . . . 1 2 1 5 . . . . . Largest Inventory Capacity 24 | 8 12 12 18 24 24 24 24 24 22 22 22 22 Average Capacity 19 | 7 11 12 15 19 24 24 24 23 22 22 22 17 Most Carried 24 | 8 12 12 18 22 24 24 24 24 22 22 22 22 Average Carried 18 | 4 11 11 15 19 23 23 23 23 21 21 21 17 Final Capacity 24 | 8 12 12 18 24 24 24 24 22 22 22 22 16 Final Carried 24 | 8 12 12 18 22 24 24 24 22 22 22 22 14 Class Distribution -------------------- 46% | Hauler-Mutant 27% | Scavenger-Mutant 26% | Mutant Dominant Class ---------------- Mutant | -10/Materials Mutant | -10/Mines Scavenger-Mutant | -9/Materials Mutant | -9/Mines Hauler-Mutant | -9/Exiles Hauler-Mutant | -8/Mines Hauler-Mutant | -8/Materials Scavenger-Mutant | -7/Factory Hauler-Mutant | -7/Lower Caves Hauler-Mutant | -7/Lower Caves Hauler-Mutant | -7/Zion Scavenger-Mutant | -7/Deep Caves Resources | -11 -10 -10 -9 -9 -9 -8 -8 -7 -7 -7 -7 -7 ----------- Run | Scr Mat Min Mat Min Exi Min Mat Fac Low Low Zio Dee Matter Collected 6086 | 310 446 550 1030 350 . 283 997 363 77 574 130 976 Remotely . | . . . . . . . . . . . . . Salvage Created 5750 | 122 641 158 1684 335 . 588 1115 303 89 151 . 564 Parts 353 | 9 50 20 99 14 . 27 67 11 8 4 . 44 Haulers Intercepted 5 | . 1 . 4 . . . . . . . . . Recyclers Shooed 3 | . 2 . 1 . . . . . . . . . Parts Field Recycled . | . . . . . . . . . . . . . Retrieved Matter . | . . . . . . . . . . . . . Parts Self-Destructed 10 | . . . . . . . . . 8 2 . . Prevented . | . . . . . . . . . . . . . Kills | -11 -10 -10 -9 -9 -9 -8 -8 -7 -7 -7 -7 -7 ------- Run | Scr Mat Min Mat Min Exi Min Mat Fac Low Low Zio Dee Combat Hostiles Destroyed 157 | . 18 14 50 8 . 15 28 5 2 4 . 13 Guns 105 | . 10 6 25 8 . 15 21 5 1 3 . 11 Cannons 5 | . . 2 3 . . . . . . . . . AOE 47 | . 8 6 22 . . . 7 . 1 1 . 2 Classes Destroyed 16 | 2 6 . 4 . . . . 1 . 1 . 2 Worker 4 | . 3 . . . . . 1 . . . . . Builder 1 | . 1 . . . . . . . . . . . Tunneler 4 | 3 1 . . . . . . . . . . . Hauler 5 | . 1 . 4 . . . . . . . . . Recycler 5 | 1 . . 2 1 . . 1 . . . . . Operator 1 | . . . 1 . . . . . . . . . Watcher 11 | . 3 . 4 . . . 3 1 . . . . Swarmer 65 | . 6 12 25 3 . 6 12 . . 1 . . Grunt 56 | . 12 2 14 5 . 8 10 2 2 1 . . Brawler 5 | . . . 2 . . 2 . 1 . . . . Protector 1 | . . . 1 . . . . . . . . . Sentry 16 | . . . 8 . . . 6 1 . 1 . . Hunter 1 | . . . . . . . . . . 1 . . Programmer 1 | . . . . . . . . 1 . . . . Z-Light 10 | . . . . . . . . . . . . 10 Assembled 2 | . . . . . . . . . . . . 2 Best Kill Streak 17 | 2 10 5 17 6 . 5 5 3 1 1 . 5 Combat Bots Only 12 | . 7 5 12 5 . 5 4 3 1 1 . 5 Max Kills in Single Turn 4 | 1 3 2 3 1 . 1 4 1 1 1 . 2 Gunslinging . | . . . . . . . . . . . . . Exploded 4 | . 3 2 3 . . . 4 . 1 1 . 1 Melee . | . . . . . . . . . . . . . Uniques/NPCs Destroyed 1 | . . . . . . . . . . . . 1 Z-Imprinter (-7/Deep Caves) Combat | -11 -10 -10 -9 -9 -9 -8 -8 -7 -7 -7 -7 -7 -------- Run | Scr Mat Min Mat Min Exi Min Mat Fac Low Low Zio Dee Damage Taken 10766 | . 486 474 1939 273 . 708 1819 659 58 406 . 3944 Core 1329 | . 106 63 194 46 . 85 126 56 . 37 . 616 Absorbed by Shields . | . . . . . . . . . . . . . Core Remaining (%) 56 | 100 . 32 . . . 18 77 . . . . . Volleys Fired 556 | 13 67 30 125 36 . 43 111 27 9 35 . 60 Largest 2 | 2 2 2 2 2 . 2 2 2 2 2 . 2 Hottest 135 | 40 100 55 100 100 . 46 100 53 53 53 . 135 Shots Fired 990 | 26 117 49 232 60 . 66 211 54 13 45 . 117 Gun 831 | 26 95 26 183 46 . 66 198 54 8 20 . 109 Cannon 44 | . . 16 28 . . . . . . . . . Launcher 80 | . 13 7 15 2 . . 5 . 5 25 . 8 Special 35 | . 9 . 6 12 . . 8 . . . . . Kinetic 790 | 26 92 42 143 46 . 66 198 54 8 20 . 95 Thermal 43 | . 9 . 6 6 . . 8 . . . . 14 Explosive 80 | . 13 7 15 2 . . 5 . 5 25 . 8 Electromagnetic 71 | . 3 . 68 . . . . . . . . . Robot Hit Streak 16 | 5 15 11 14 8 . 16 12 14 2 6 . 4 Robot Miss Streak 7 | 2 3 4 5 4 . 2 3 2 2 4 . 7 Penetration Max 1 | . . . . . . . . 1 1 . . 1 Secondary Targets 16 | . 1 . 4 4 . 3 . . . . . 4 Max Gunslinging Chain 1 | . 1 . 1 1 . 1 . . . . . 1 Shots Hit Robots 602 | 14 70 23 171 31 . 51 135 42 5 13 . 47 Core Hits 343 | 5 43 19 100 19 . 29 63 14 4 9 . 38 Critical Hits 8 | . . . 2 . . . 4 . . 2 . . Critical Kills 1 | . . . . . . . 1 . . . . . Critical Parts Destroyed 6 | . . . 1 . . . 3 . . 2 . . Melee Attacks 11 | . . . . . . . . . . . . 11 Impact . | . . . . . . . . . . . . . Slashing 11 | . . . . . . . . . . . . 11 Piercing . | . . . . . . . . . . . . . Sneak Attacks . | . . . . . . . . . . . . . Combat Hostiles . | . . . . . . . . . . . . . Follow-up Attacks . | . . . . . . . . . . . . . Damage Inflicted 13521 | 127 1482 618 3995 460 . 795 2816 970 203 327 . 1728 Guns 8418 | 127 638 134 1672 453 . 795 2132 970 138 185 . 1174 Cannons 487 | . . 74 413 . . . . . . . . . Explosions 4615 | . 844 410 1910 7 . . 683 . 65 142 . 554 Melee . | . . . . . . . . . . . . . Ramming 1 | . . . . . . . 1 . . . . . Kinetic 8098 | 127 623 208 1429 453 . 795 2132 970 138 185 . 1038 Thermal 433 | . . . 297 . . . . . . . . 136 Explosive 4318 | . 844 410 1613 7 . . 683 . 65 142 . 554 Electromagnetic 671 | . 15 . 656 . . . . . . . . . Impact . | . . . . . . . . . . . . . Slashing . | . . . . . . . . . . . . . Piercing . | . . . . . . . . . . . . . Highest Corruption 4 | . . . . . . . . 2 2 2 4 . Average Corruption 1 | . . . . . . . . 1 2 2 2 . Corruption Purged . | . . . . . . . . . . . . . Effects 20 | . . . . . . . . 5 2 13 . . Message Errors 6 | . . . . . . . . 1 1 4 . . Heat Flow Errors 7 | . . . . . . . . . 1 6 . . Energy Discharges 2 | . . . . . . . . 1 . 1 . . Data Loss (minor) 3 | . . . . . . . . 1 . 2 . . Targeting Errors 2 | . . . . . . . . 2 . . . . Overload Shots . | . . . . . . . . . . . . . Overflow Damage 224 | . 71 29 124 . . . . . . . . . Projectiles 5 | . . . 5 . . . . . . . . . Explosions 219 | . 71 29 119 . . . . . . . . . Melee . | . . . . . . . . . . . . . Knockbacks . | . . . . . . . . . . . . . Impact . | . . . . . . . . . . . . . Kinetic . | . . . . . . . . . . . . . Secondary . | . . . . . . . . . . . . . Self-Inflicted Damage 303 | . 3 80 62 . . . . . . 119 . 39 Shots 11 | . 1 2 3 . . . . . . 4 . 1 Rammed 1 | . . . . . . . 1 . . . . . Targets Rammed 1 | . . . . . . . 1 . . . . . Kicked . | . . . . . . . . . . . . . Crushed . | . . . . . . . . . . . . . Highest Temperature 504 | . 40 28 270 3 . 36 170 267 267 293 . 504 Average Temperature 68 | . 11 11 67 3 . 13 40 108 86 91 . 106 Received Heat Transfer 3480 | . 222 102 585 105 . 360 684 174 36 78 . 1134 Effects 7 | . . . 1 . . . . 1 . 4 . 1 Energy Bleed 4 | . . . 1 . . . . 1 . 1 . 1 Interference 3 | . . . . . . . . . . 3 . . Siege Activations . | . . . . . . . . . . . . . Robots Corrupted . | . . . . . . . . . . . . . Combat Hostiles . | . . . . . . . . . . . . . Parts Fried 1 | . . . 1 . . . . . . . . . Impact Corruptions . | . . . . . . . . . . . . . Robots Melted . | . . . . . . . . . . . . . Combat Hostiles . | . . . . . . . . . . . . . Parts Melted . | . . . . . . . . . . . . . Heat Transferred 472 | . . . 250 . . . . . . . . 222 Parts Sabotaged . | . . . . . . . . . . . . . Parts Stolen . | . . . . . . . . . . . . . Parts Stripped . | . . . . . . . . . . . . . Power Chain Reactions 5 | . . . 5 . . . . . . . . . Missiles Intercepted . | . . . . . . . . . . . . . Alert | -11 -10 -10 -9 -9 -9 -8 -8 -7 -7 -7 -7 -7 ------- Run | Scr Mat Min Mat Min Exi Min Mat Fac Low Low Zio Dee Peak Influence 837 | 20 456 402 837 326 . 252 414 412 . . . . Average Influence 251 | 8 176 243 444 222 . 147 137 175 . . . . Maximum Alert Level 3 | . 2 2 3 1 . 1 2 2 . . . . Low Security (%) 48 | 100 64 27 29 44 . 69 72 56 . . . . Level 1 30 | . 23 61 10 55 . 30 25 27 . . . . Level 2 14 | . 11 10 37 . . . 1 15 . . . . Level 3 6 | . . . 22 . . . . . . . . . Level 4 . | . . . . . . . . . . . . . Level 5 . | . . . . . . . . . . . . . High Security . | . . . . . . . . . . . . . Max Security . | . . . . . . . . . . . . . Squads Dispatched 12 | . 3 . 6 . . . 2 1 . . . . Investigation 2 | . 1 . . . . . 1 . . . . . Extermination 1 | . . . . . . . . 1 . . . . Reinforcement 7 | . 2 . 4 . . . 1 . . . . . Assault 2 | . . . 2 . . . . . . . . . Garrison . | . . . . . . . . . . . . . Intercept . | . . . . . . . . . . . . . Construction Impeded . | . . . . . . . . . . . . . Haulers Reinforced . | . . . . . . . . . . . . . Stealth | -11 -10 -10 -9 -9 -9 -8 -8 -7 -7 -7 -7 -7 --------- Run | Scr Mat Min Mat Min Exi Min Mat Fac Low Low Zio Dee Distress Signals 10 | . 1 . 5 . . . 3 1 . . . . Communications Jammed . | . . . . . . . . . . . . . Distress Signals . | . . . . . . . . . . . . . Times Spotted 225 | . 28 18 63 11 . 16 55 8 6 5 . 15 Peak Tracking Total 10 | . 4 6 10 3 . 5 6 4 4 3 . 6 Tactical Retreats 18 | . 2 2 2 . . . 7 . 4 1 . . Traps | -11 -10 -10 -9 -9 -9 -8 -8 -7 -7 -7 -7 -7 ------- Run | Scr Mat Min Mat Min Exi Min Mat Fac Low Low Zio Dee Traps Triggered 3 | . 1 . . 1 . . 1 . . . . . Indirectly . | . . . . . . . . . . . . . Trap Hack Attempts . | . . . . . . . . . . . . . Triggered . | . . . . . . . . . . . . . Disarmed . | . . . . . . . . . . . . . Reprogrammed . | . . . . . . . . . . . . . Reused . | . . . . . . . . . . . . . Traps Extracted . | . . . . . . . . . . . . . Installed . | . . . . . . . . . . . . . Triggered . | . . . . . . . . . . . . . Machines | -11 -10 -10 -9 -9 -9 -8 -8 -7 -7 -7 -7 -7 ---------- Run | Scr Mat Min Mat Min Exi Min Mat Fac Low Low Zio Dee Machines Disabled 13 | . 5 . 6 . . . 2 . . . . . Max in Single Turn 2 | . 2 . 1 . . . 1 . . . . . Machines Sabotaged . | . . . . . . . . . . . . . Garrisons Compromised . | . . . . . . . . . . . . . Overloaded Fab Kills . | . . . . . . . . . . . . . Fab Network Shutdowns 1 | . . . . . . . . 1 . . . . Hacking | -11 -10 -10 -9 -9 -9 -8 -8 -7 -7 -7 -7 -7 --------- Run | Scr Mat Min Mat Min Exi Min Mat Fac Low Low Zio Dee Machines Accessed 30 | . 3 . 8 1 4 1 8 3 1 1 . . Terminals 17 | . 3 . 5 . . 1 7 1 . . . . Fabricators 1 | . . . . . . . . 1 . . . . Repair Stations 2 | . . . 2 . . . . . . . . . Recycling Units . | . . . . . . . . . . . . . Scanalyzers 2 | . . . 1 . . . 1 . . . . . Garrison Access 1 | . . . . . . . . 1 . . . . Total Hacks 108 | . 7 . 20 1 48 1 20 9 1 1 . . Successful 83 | . 3 . 12 1 48 . 11 6 1 1 . . Failed 25 | . 4 . 8 . . 1 9 3 . . . . Catastrophic 8 | . 1 . 2 . . 1 3 1 . . . . Database Lockouts . | . . . . . . . . . . . . . Manual 25 | . 4 . 5 4 . 1 7 . . . 4 . Terminals 40 | . 7 . 11 . . 1 18 3 . . . . Fabricators 5 | . . . . . . . . 5 . . . . Repair Stations 5 | . . . 5 . . . . . . . . . Recycling Units . | . . . . . . . . . . . . . Scanalyzers 6 | . . . 4 . . . 2 . . . . . Garrison Access 1 | . . . . . . . . 1 . . . . Terminal Hacks 70 | . 3 . 5 1 48 . 9 2 1 1 . . Record 49 | . . . . . 48 . . . . 1 . . Part Schematic 2 | . . . 1 . . . 1 . . . . . Prototype ID Bank 3 | . 1 . 2 . . . . . . . . . Open Door 2 | . . . . 1 . . . . 1 . . . Branch Access Points 1 | . . . . . . . 1 . . . . . Terminal Index 2 | . . . . . . . 1 1 . . . . Unreport Threat 2 | . . . . . . . 2 . . . . . Locate Traps 5 | . 1 . 2 . . . 1 1 . . . . Registered Components 1 | . . . . . . . 1 . . . . . Zone Layout 3 | . 1 . . . . . 2 . . . . . Fabricator Hacks 4 | . . . . . . . . 4 . . . . Load Schematic 1 | . . . . . . . . 1 . . . . Build 3 | . . . . . . . . 3 . . . . Repair Station Hacks 4 | . . . 4 . . . . . . . . . Scan Component 2 | . . . 2 . . . . . . . . . Repair 2 | . . . 2 . . . . . . . . . Recycling Unit Hacks . | . . . . . . . . . . . . . Scanalyzer 5 | . . . 3 . . . 2 . . . . . Insert Component 2 | . . . 1 . . . 1 . . . . . Analyze 3 | . . . 2 . . . 1 . . . . . Garrison Access Hacks . | . . . . . . . . . . . . . Unauthorized Hacks . | . . . . . . . . . . . . . Terminals . | . . . . . . . . . . . . . Fabricators . | . . . . . . . . . . . . . Repair Stations . | . . . . . . . . . . . . . Recycling Units . | . . . . . . . . . . . . . Scanalyzers . | . . . . . . . . . . . . . Garrison Access . | . . . . . . . . . . . . . Data Cores Recovered . | . . . . . . . . . . . . . Used . | . . . . . . . . . . . . . Hacking Detections 19 | . 3 . 6 . . 1 7 2 . . . . Full Trace Events 1 | . . . . . . . 1 . . . . . Feedback Events . | . . . . . . . . . . . . . Feedback Blocked . | . . . . . . . . . . . . . Robot Schematics Acquired . | . . . . . . . . . . . . . Robots Built . | . . . . . . . . . . . . . Matter . | . . . . . . . . . . . . . Time . | . . . . . . . . . . . . . Total Robot Build Rating . | . . . . . . . . . . . . . Part Schematics Acquired 4 | . . . 2 . . . 2 . . . . . Parts Built 6 | . . . . . . . . 6 . . . . Matter 570 | . . . . . . . . 570 . . . . Time 285 | . . . . . . . . 285 . . . . Total Part Build Rating 30 | . . . . . . . . 30 . . . . Parts Repaired 2 | . . . 2 . . . . . . . . . Time 180 | . . . 180 . . . . . . . . . Parts Recycled . | . . . . . . . . . . . . . Recycled Matter . | . . . . . . . . . . . . . Retrieved Matter . | . . . . . . . . . . . . . Retrieved Components . | . . . . . . . . . . . . . Parts Scanalyzed 2 | . . . 1 . . . 1 . . . . . Part Schematics Acquired 2 | . . . 1 . . . 1 . . . . . Parts Damaged 1 | . . . 1 . . . . . . . . . Bothacking | -11 -10 -10 -9 -9 -9 -8 -8 -7 -7 -7 -7 -7 ------------ Run | Scr Mat Min Mat Min Exi Min Mat Fac Low Low Zio Dee Used RIF Installer . | . . . . . . . . . . . . . Robots Hacked . | . . . . . . . . . . . . . Non-combat . | . . . . . . . . . . . . . Combat . | . . . . . . . . . . . . . Robot Hacks Applied . | . . . . . . . . . . . . . Relay Couplers Released . | . . . . . . . . . . . . . Robots Rewired . | . . . . . . . . . . . . . Allies Hacked . | . . . . . . . . . . . . . Hacks Repelled . | . . . . . . . . . . . . . Allies | -11 -10 -10 -9 -9 -9 -8 -8 -7 -7 -7 -7 -7 -------- Run | Scr Mat Min Mat Min Exi Min Mat Fac Low Low Zio Dee Total Allies 6 | . . . . 3 . . . . . . 3 . Largest Group 3 | . . . . 3 2 2 . . . . 3 3 Highest-Rated Group 82 | . . . . 40 32 32 . . . . 82 82 Highest-Rated Ally 31 | . . . . 16 16 16 . . . . 31 31 Total Orders . | . . . . . . . . . . . . . Ally Attacks 62 | . . . . 19 . 14 . . . . . 29 Total Damage 630 | . . . . 178 . 159 . . . . . 293 Kills 4 | . . . . 2 . 2 . . . . . . Allies Corrupted . | . . . . . . . . . . . . . Allies Melted . | . . . . . . . . . . . . . Intel | -11 -10 -10 -9 -9 -9 -8 -8 -7 -7 -7 -7 -7 ------- Run | Scr Mat Min Mat Min Exi Min Mat Fac Low Low Zio Dee Robot Analysis Total . | . . . . . . . . . . . . . Derelict Logs Recovered 7 | . . 2 . 1 . . . . 2 1 1 . Drone Launches . | . . . . . . . . . . . . . Drone Recoveries . | . . . . . . . . . . . . . Exploration | -11 -10 -10 -9 -9 -9 -8 -8 -7 -7 -7 -7 -7 ------------- Run | Scr Mat Min Mat Min Exi Min Mat Fac Low Low Zio Dee Turns Passed 13954 | 144 765 1080 2398 1341 647 649 1369 1285 445 1274 1085 1472 Spaces Moved 9876 | 86 533 595 1013 536 323 273 553 809 631 1525 1440 1559 Core 1 | 1 . . . . . . . . . . . . Treads 3380 | . . 595 1013 536 323 273 204 436 . . . . Legs . | . . . . . . . . . . . . . Wheels 967 | 85 533 . . . . . 349 . . . . . Hover 5528 | . . . . . . . . 373 631 1525 1440 1559 Flight . | . . . . . . . . . . . . . Fastest Speed 50 | 50 90 160 160 180 200 180 150 63 63 63 68 63 Average Speed 109 | 99 96 160 174 187 200 193 166 124 63 64 68 66 Slowest Speed 200 | 100 100 180 200 200 200 200 200 180 63 68 68 146 Overloaded Moves . | . . . . . . . . . . . . . Propulsion Burnouts . | . . . . . . . . . . . . . Robots Hopped . | . . . . . . . . . . . . . Cave-ins Triggered . | . . . . . . . . . . . . . Exploration Rate (%) 67 | 4 76 96 87 73 69 76 62 17 74 95 90 58 Regions Visited 12 Branch Regions 8 Pre-discovered Areas 6 | . . 1 . . 1 . . . . . 4 . Known Exits Taken 4 | . . . . . . . . 1 1 1 1 . Unknown Exits Taken 8 | 1 1 1 1 1 1 1 1 . . . . . Scrap Searched 11 | . . 2 . . . 2 . . 2 3 2 . Spaces Dug 261 | . 27 26 6 6 . . 7 . 41 128 . 20 Terrain Destroyed 744 | . 65 75 156 29 . . 52 . 52 276 . 39 Melee 11 | . . . . . . . . . . . . 11 Projectile 31 | . 9 . 6 6 . . 8 . . . . 2 AOE 702 | . 56 75 150 23 . . 44 . 52 276 . 26 Actions | -11 -10 -10 -9 -9 -9 -8 -8 -7 -7 -7 -7 -7 --------- Run | Scr Mat Min Mat Min Exi Min Mat Fac Low Low Zio Dee Total 12040 | 119 654 672 1404 817 325 341 805 1043 665 1770 1546 1879 Wait 1063 | 2 11 26 165 209 1 14 84 148 18 195 77 113 Move 9864 | 85 532 594 1012 535 322 272 552 808 630 1524 1439 1559 Hop . | . . . . . . . . . . . . . Pick Up 155 | 11 13 5 29 13 2 5 18 19 1 2 2 35 Fast Attach 57 | 5 2 1 9 1 . . 5 1 . . 13 20 Attach 55 | 2 1 2 10 2 . 3 7 5 . 2 . 21 Detach 2 | . . . . . . . . . . . . 2 Swap 119 | . 15 9 27 8 . 1 11 15 4 11 . 18 Drop 152 | 1 13 5 27 9 . 3 16 20 3 1 15 39 Fire 556 | 13 67 30 125 36 . 43 111 27 9 35 . 60 Melee 11 | . . . . . . . . . . . . 11 Ram . | . . . . . . . . . . . . . Kick . | . . . . . . . . . . . . . Crush 1 | . . . . . . . 1 . . . . . Escape Stasis . | . . . . . . . . . . . . . Rewire 5 | . . . . 4 . . . . . . . 1 Trap . | . . . . . . . . . . . . . Miscellaneous . | . . . . . . . . . . . . . Route ------- -11/Scrapyard -10/Materials (discovered 2 exits: *Mat / [*Min]) -10/Mines (discovered 2 exits: *Mat x2) -9/Materials (discovered 5 exits: *Mat x2 / *Min / [*Sto x2]) -9/Mines (discovered 2 exits: *Mat / *Exi) -9/Exiles -8/Mines (discovered 2 exits: *Mat x2) -8/Materials (discovered 2 exits: *Fac x2) -7/Factory -7/Lower Caves -7/Lower Caves (discovered 2 exits: *Fac / *Zio) -7/Zion (discovered 2 exits: *Dee / [*Pro]) -7/Deep Caves History --------- Turn | Location | Event 12 | -11/Scrapyard | Discovered new exit (range 15) 145 | -11/Scrapyard | Entered Materials 313 | -10/Materials | Build established: Mutant 714 | -10/Materials | Destroyed 7 combat bots 730 | -10/Materials | Discovered new exit (range 16) 868 | -10/Materials | Discovered new exit (range 5) 910 | -10/Materials | Entered Mines 943 | -10/Mines | Learned Materials stockpile data 959 | -10/Mines | Joined a pair of Derelicts in attacking an 0b10 outpost 1032 | -10/Mines | Discovered new exit (range 9) 1057 | -10/Mines | Core integrity fell below 50% 1218 | -10/Mines | Found a damaged Exp. Sensor Array with a note attached 1224 | -10/Mines | Found Prototype Device 1322 | -10/Mines | Learned location of Zion (-7) 1416 | -10/Mines | Discovered new exit (range 6) 1990 | -10/Mines | Entered Materials 1990 | -9/Materials | Evolved 2 slots: Utility x2 2304 | -9/Materials | Discovered new exit (range 4) 2481 | -9/Materials | Discovered new exit (range 16) 2678 | -9/Materials | Discovered new exit (range 13) 2865 | -9/Materials | Discovered new exit (range 16) 2965 | -9/Materials | Destroyed 12 combat bots 2994 | -9/Materials | Identified Exp. Sensor Array 3077 | -9/Materials | Repaired Exp. Sensor Array 3234 | -9/Materials | Build established: Scavenger-Mutant 3553 | -9/Materials | Discovered new exit (range 8) 3590 | -9/Materials | First assault squad dispatched 4120 | -9/Materials | Repaired Broken Exp. Sensor Array 4388 | -9/Materials | Entered Mines 4420 | -9/Mines | Assembled infested the area 4832 | -9/Mines | Core integrity fell below 50% 5071 | -9/Mines | Discovered new exit (range 5) 5099 | -9/Mines | Met a Derelict who couldn't figure out how to use a Trap Extractor 5171 | -9/Mines | Build established: Mutant 5458 | -9/Mines | Assisted by bots powering up and referring to "LRC-V3" 5620 | -9/Mines | Build established: Hauler-Mutant 5718 | -9/Mines | Discovered new exit (range 5) 5729 | -9/Mines | Entered Exiles 5729 | -9/Exiles | Accompanied by 2 allies 5775 | -9/Exiles | Met 8R-AWN 5811 | -9/Exiles | Met EX-HEX 5912 | -9/Exiles | Met EX-DEC 6097 | -9/Exiles | Met EX-BIN 6353 | -9/Exiles | Discovered new exit (range 14) 6376 | -9/Exiles | Entered Mines 6376 | -8/Mines | Accompanied by 2 allies 6471 | -8/Mines | Discovered new exit (range 11) 6854 | -8/Mines | Core integrity fell below 20% 6862 | -8/Mines | Lost 3 parts (1p1n1w) 7008 | -8/Mines | Discovered new exit (range 5) 7025 | -8/Mines | Entered Materials 7025 | -8/Materials | Evolved 2 slots: Propulsion x1, Utility x1 7874 | -8/Materials | Discovered new exit (range 16) 7896 | -8/Materials | Found Powered Armor 7899 | -8/Materials | Found Powered Armor 7902 | -8/Materials | Found Powered Armor 7907 | -8/Materials | Found Powered Armor 8272 | -8/Materials | Discovered new exit (range 10) 8394 | -8/Materials | Entered Factory 8394 | -7/Factory | Evolved 2 slots: Power x1, Propulsion x1 8707 | -7/Factory | Build established: Scavenger-Mutant 9161 | -7/Factory | Fabricated Cmb. Airjet? 9307 | -7/Factory | Fabricated Cmb. Airjet? 9395 | -7/Factory | Local fabrication network quarantined 9424 | -7/Factory | Fabricated Cmb. Airjet (x2) 9497 | -7/Factory | Build established: Hauler-Mutant 9676 | -7/Factory | Discovered new exit (range 6) 9679 | -7/Factory | Identified exit to Lower Caves 9679 | -7/Factory | Entered Lower Caves 9680 | -7/Lower Caves | Encountered a Warlord checkpoint 9681 | -7/Lower Caves | Learned Factory garrison access intel 9857 | -7/Lower Caves | Found Prototype Device 10012 | -7/Lower Caves | Discovered new exit (range 15) 10123 | -7/Lower Caves | Identified exit to Lower Caves 10124 | -7/Lower Caves | Entered another Lower Caves area 10155 | -7/Lower Caves | Discovered new exit (range 8) 10159 | -7/Lower Caves | Identified exit to Factory 10546 | -7/Lower Caves | Learned Factory terminal intel 11105 | -7/Lower Caves | Attracted the attention of an 0b10 checkpoint 11267 | -7/Lower Caves | Encountered a Warlord checkpoint 11280 | -7/Lower Caves | Discovered new exit (range 15) 11310 | -7/Lower Caves | Identified exit to Zion 11398 | -7/Lower Caves | Entered Zion 11424 | -7/Zion | System corruption cleaned by Quarantine Array 11450 | -7/Zion | Found Prototype Processor 11450 | -7/Zion | Identified Exp. Targeting Computer 11466 | -7/Zion | System corruption cleaned by Quarantine Array 11490 | -7/Zion | Found Prototype Processor 11490 | -7/Zion | Identified Exp. Signal Interpreter 11505 | -7/Zion | Discovered new exit (range 16) 11611 | -7/Zion | Acquired unknown access codes intercepted by a Zionite 11632 | -7/Zion | Learned location of Data Miner (-6) 11695 | -7/Zion | Learned Factory stockpile data 11737 | -7/Zion | Learned location of Testing (-2) 11777 | -7/Zion | Learned location of Quarantine (-3) 11781 | -7/Zion | Gained Derelict followers 11803 | -7/Zion | Given A8's code to call for help 11812 | -7/Zion | Learned location of Armory (-3) 12121 | -7/Zion | Opened final containment barrier to the Deep Caves 12427 | -7/Zion | Discovered new exit (range 5) 12429 | -7/Zion | Saw the warning signs outside the Deep Caves entrance 12431 | -7/Zion | Identified exit to Deep Caves 12483 | -7/Zion | Entered Deep Caves 12483 | -7/Deep Caves | Accompanied by 3 allies 12701 | -7/Deep Caves | Attacked by Z-Imprinter 12787 | -7/Deep Caves | Core integrity fell below 50% 12794 | -7/Deep Caves | Destroyed Z-Imprinter 12823 | -7/Deep Caves | Lost 11 parts (3p3n3u2w) 12880 | -7/Deep Caves | Found Prototype Protection 12880 | -7/Deep Caves | Identified Zio. Weapon Casing 13116 | -7/Deep Caves | Z-Facility disabled 13157 | -7/Deep Caves | Lost 3 parts (1p1n1u) 13198 | -7/Deep Caves | Build established: Scavenger-Mutant 13654 | -7/Deep Caves | Core integrity fell below 20% 13692 | -7/Deep Caves | Lost 6 parts (1p1n2u2w) 13704 | -7/Deep Caves | Found Prototype Protection 13704 | -7/Deep Caves | Identified Zio. Heavy Carapace 13711 | -7/Deep Caves | Found Zio. Heavy Carapace 13714 | -7/Deep Caves | Found Zio. Weapon Casing 13760 | -7/Deep Caves | Found Zio. Weapon Casing 13796 | -7/Deep Caves | Found Zio. Weapon Casing 13955 | -7/Deep Caves | Destroyed by as-41997 with Assembled Rifle Last Messages --------------- 13799_ Dropped Lrg. Storage Unit. 13801_ Acquired Adv. Hacking Suite. 13804_ Extracted 5 matter. 13806_ Dropped Zio. Phaser-S. 13807_ Dropped Zio. Laser-S. 13807_ Dropped Lgt. Treads. 13808_ Acquired Prototype Device. 13879_ Dropped Exp. Sensor Array. 13879_ Dropped Exp. Heat Sink. 13894_ as-50938 destroyed. 13897_ as-66243 destroyed. 13902_ Dropped Zio. Heavy Carapace. 13907_ Overheating: Energy bleed (-18). 13911_ Acquired Zio. Heavy Carapace. 13919_ Acquired Exp. Sensor Array. 13921_ Acquired Exp. Heat Sink. 13949_ Acquired 18 matter. 13950_ Acquired 13 matter. 13951_ Dropped Exp. Heat Sink. 13951_ Dropped Exp. Sensor Array. Map ----- +----------------------------------------------------+ | ?????????????????????#??????????????# # | | ????????????????????? #?????????????##### | | ????????????????????? ????????????????## | | ?????????????????????? ????????????????# | | ?????????????????????? ????????????????## | | ?????????????????????? ?????????????#### | | ??????????????????????# ????????????## # | | ??????????????????????# ????????????# | | ???????????? ???????## ????????????# | | ????????????# ?????? ???????????# | | ?????????????# ????? ???????????## | | ???????????????# ???# ????????????### | | ????????????????# ## ########??????# | | ?????????????????# #??????## | | ?????????????????# #???????# | | ?????????????????## ## ##### #????##### | | ???????????????????# ??# ????# #???## ## | | ???????????????????# ??# ##### #???# ## | | ???????????????????# ?# #???# # | | ????????????????????# ## ### #??## | | ?????????????????????# #"# ##### | | ?????????????????????# #c# | | ??????????????????????# !! | | ??????????????????????## ## | | ?????????? ### ## ###### | | ?????????? @#####????# | | ?????????? a #????????### | | ??????????# ##########??????????# | | ???????????# ???????????????????????## | | ??????????????????????????????????????# | | ??????????????????????????????????????# | | ??????????????????????????????????????## # | | ???????????????????????????????????????# " | | ???????????????????????????????????????## ####### | | ????????????????????????????????????????####?????? | | | | | | | | | | | | | | | | | | | | | | | | | | | | | | | +----------------------------------------------------+ Best States ------------- Heat Dissipation 61 Energy Generation 49 Energy Capacity 330 Matter Stores 300 Matter Capacity 300 Sight Range 16 Robot Scan Range 30 Terrain Scan Density 10 Armor Coverage 1200 Weapon Shielding 100 Evasion (%) 52 Recoil Reduction 4 Offensive Hacking 10 Defensive Hacking 10 Item Schematics ----------------- Hcp. Storage Unit | -9/Materials | Hacked Exp. Sensor Array | -9/Materials | Scanalyzed Cmb. Airjet | -8/Materials | Scanalyzed Lrg. Storage Unit | -8/Materials | Hacked Robot Schematics ------------------ None Fabricated ------------ Cmb. Airjet | x2 | -7/Factory Cmb. Airjet | x2 | -7/Factory Cmb. Airjet | x2 | -7/Factory Alien Tech Used ----------------- None Achievements -------------- None Challenges ------------ None Game ------ Seed WarpAntigravRouter Manual? 0 Play Time 02:12:27 Cumulative 158.6 hours Start 2020.08.29 @ 16:07:41 End 2020.08.29 @ 18:47:34 Sessions 1 Manual Loads 0 Difficulty Rogue Special Mode None Game No. 189 Rogue 189 Adventurer 0 Explorer 0 Win Type - Total 2 Types 2/0/0/0/0/0/0 Lore% 61 Gallery% 72 Achievement% 53 Wizard Run 0 Options --------- ASCII 0 Keyboard 0 Movement Numpad Keybinds 0 Fullscreen 2 Font 24/Smallcaps Map View 76x50 Tactical HUD 1 Map Filters NONE Filters NONE Steam 1 RUN: aedd694b-e957-4b5c-9e1a-525ea92fe06a